[Event "Seniors-LEM-65 Sachsen-Anhalt 2024"]
[Site "Magdeburg"]
[Date "2024.07.03"]
[Round "3.1"]
[White "Jacob, Helmut"]
[Black "Schnelzer, Reinhold"]
[Result "1/2-1/2"]
[ECO "B15"]
[WhiteElo "2047"]
[BlackElo "2162"]
[Annotator "RC"]
[PlyCount "78"]
[EventDate "2024.06.25"]
[EventType "swiss"]
[EventCountry "GER"]
[SourceTitle "playchess.com"]
[Source "ChessBase"]
[SourceQuality "1"]
[TimeControl "40/5400+30:1800+30"]

1. e4 {[%emt 0:00:30]} c6 {[%emt 0:00:30]} 2. d4 {[%emt 0:00:30]} d5 {[%emt 0:00:30]} 3. Nc3 {[%emt 0:00:30]} dxe4 {[%emt 0:00:30]} 4. Nxe4 {[%emt 0:00:03]} Nf6 {[%emt 0:00:00]} 5. Nxf6+ {[%emt 0:00:00]} exf6 {[%emt 0:00:00]} 6. c3 {[%emt 0:00:00]} Bd6 {[%emt 0:00:00]} 7. Bd3 {[%emt 0:00:00]} O-O {[%emt 0:00:00]} 8. Ne2 {[%emt 0:01:32]} Re8 {[%emt 0:00:00]} 9. Qc2 {[%emt 0:00:24]} h5 {[%emt 0:00:15]} 10. Bd2 {[%emt 0:02:45]} Be6 {[%emt 0:03:55]} 11. O-O {[%emt 0:11:23]} h4 {[%emt 0:05:01]} 12. Bf4 {[%emt 0:04:34]} Qc7 {[%emt 0:08:19]} 13. Bxd6 {[%emt 0:00:12]} Qxd6 {[%emt 0:00:08]} 14. Rfe1 {[%emt 0:06:44]} Nd7 {[%emt 0:01:44]} 15. Qd2 {[%emt 0:02:53]} h3 {[%emt 0:07:40]} 16. Qf4 {[%emt 0:06:25]} Qxf4 {[%emt 0:03:32]} 17. Nxf4 {[%emt 0:00:01]} hxg2 {[%emt 0:00:16]} 18. Re3 {[%emt 0:08:09]} Nf8 {[%emt 0:09:56]} 19. Rae1 {[%emt 0:03:07]} Bd7 {[%emt 0:03:51]} 20. Kxg2 {[%emt 0:03:53]} g6 {[%emt 0:02:20]} 21. Rxe8 {[%emt 0:02:01]} Rxe8 {[%emt 0:01:53]} 22. Rxe8 {[%emt 0:00:11]} Bxe8 {[%emt 0:00:12]} 23. Kf3 {[%emt 0:00:41]} Nd7 {[%emt 0:02:13]} 24. Ke3 {[%emt 0:01:57]} f5 {[%emt 0:03:50]} 25. Ng2 {[%emt 0:11:22]} Nb6 {[%emt 0:08:51]} 26. Kd2 {[%emt 0:03:33]} f6 {[%emt 0:01:21]} 27. c4 {[%emt 0:01:01]} Bf7 {[%emt 0:03:30]} 28. b3 {[%emt 0:00:06]} Be6 {[%emt 0:02:08]} 29. Ke3 {[%emt 0:05:09]} Kf7 {[%emt 0:02:28]} 30. Be2 {[%emt 0:08:34]} Ke7 {[%emt 0:01:11]} 31. Nf4 {[%emt 0:01:05]} Bf7 {[%emt 0:00:51]} 32. Nd3 {[%emt 0:00:11]} Nd7 {[%emt 0:02:11]} 33. f4 {[%emt 0:00:28]} Nf8 {[%emt 0:01:37]} 34. Bf3 {[%emt 0:00:30]} Kd6 {[%emt 0:00:38]} 35. Be2 {[%emt 0:09:19]} a5 {[%emt 0:03:40]} 36. Nc5 {[%emt 0:00:58]} b6 {[%emt 0:02:38]} 37. Na4 {[%emt 0:00:17]} Kc7 {[%emt 0:02:04]} 38. h4 {[%emt 0:00:15]} Ne6 {[%emt 0:03:30]} 39. Nc3 {[%emt 0:03:04]} Nf8 {[%emt 0:03:44]} 1/2-1/2

[Event "Seniors-LEM-65 Sachsen-Anhalt 2024"]
[Site "Magdeburg"]
[Date "2024.07.03"]
[Round "3.2"]
[White "Okrajek, Alexander"]
[Black "Lapp, Karl"]
[Result "1/2-1/2"]
[ECO "A07"]
[WhiteElo "2163"]
[BlackElo "2001"]
[Annotator "RC"]
[PlyCount "34"]
[EventDate "2024.06.25"]
[EventType "swiss"]
[EventCountry "GER"]
[SourceTitle "playchess.com"]
[Source "ChessBase"]
[SourceQuality "1"]
[TimeControl "40/5400+30:1800+30"]

1. Nf3 {[%emt 0:00:46]} d5 {[%emt 0:00:15]} 2. g3 {[%emt 0:00:45]} Nf6 {[%emt 0:00:38]} 3. Bg2 {[%emt 0:00:22]} c6 {[%emt 0:01:04]} 4. O-O {[%emt 0:01:38]} Bf5 {[%emt 0:01:07]} 5. b3 {[%emt 0:02:05]} Nbd7 {[%emt 0:01:12]} 6. Bb2 {[%emt 0:00:45]} h6 {[%emt 0:01:42]} 7. d3 {[%emt 0:01:49]} Qc7 {[%emt 0:03:51]} 8. c4 {[%emt 0:03:42]} e6 {[%emt 0:03:02]} 9. Nc3 {[%emt 0:02:54]} Be7 {[%emt 0:02:18]} 10. e4 {[%emt 0:09:10]} dxe4 {[%emt 0:02:17]} 11. dxe4 {[%emt 0:00:09]} Bh7 {[%emt 0:03:54]} 12. Qe2 {[%emt 0:03:32]} Nc5 {[%emt 0:08:15]} 13. Rfd1 {[%emt 0:06:15]} Ncxe4 {[%emt 0:03:25]} 14. Nxe4 {[%emt 0:08:31]} Bxe4 {[%emt 0:00:09]} 15. Be5 {[%emt 0:04:09]} Qa5 {[%emt 0:05:08]} 16. a3 {[%emt 0:05:49]} Rd8 {[%emt 0:00:48]} 17. Rxd8+ {[%emt 0:08:34]} Qxd8 {[%emt 0:01:47]} 1/2-1/2

[Event "Seniors-LEM-65 Sachsen-Anhalt 2024"]
[Site "Magdeburg"]
[Date "2024.07.03"]
[Round "3.4"]
[White "Babrikowski, Peter"]
[Black "Lorenz, Dietmar"]
[Result "1/2-1/2"]
[ECO "D26"]
[WhiteElo "2129"]
[BlackElo "1981"]
[Annotator "NA RC"]
[PlyCount "71"]
[EventDate "2024.06.25"]
[EventType "swiss"]
[EventCountry "GER"]
[SourceTitle "playchess.com"]
[Source "ChessBase"]
[SourceQuality "1"]
[TimeControl "40/5400+30:1800+30"]

1. Nf3 {[%emt 0:00:08]} d5 {[%emt 0:00:07]} 2. d4 {[%emt 0:00:09]} Nf6 {[%emt 0:00:20]} 3. c4 {[%emt 0:00:33]} c6 {[%emt 0:00:17]} 4. Nc3 {[%emt 0:00:49]} e6 {[%emt 0:00:17]} 5. Bg5 {[%emt 0:03:42]} Be7 {[%emt 0:00:28]} 6. e3 {[%emt 0:00:15]} O-O {[%emt 0:00:51]} 7. Bd3 {[%emt 0:00:20]} Nbd7 {[%emt 0:01:33]} 8. O-O {[%emt 0:00:47]} dxc4 {[%emt 0:03:37]} 9. Bxc4 {[%emt 0:00:10]} c5 {[%emt 0:02:31]} 10. Qe2 {[%emt 0:02:53]} cxd4 {[%emt 0:03:34]} 11. exd4 {[%emt 0:00:14]} Nb6 {[%emt 0:02:19]} 12. Bb3 {[%emt 0:00:29]} Re8 {[%emt 0:00:35] D26: Queen's Gambit Accepted: 4 e3 e6 5 Bxc5 c5 sidelines.} 13. Rac1 {[%emt 0:02:15]} Bd7 {[%emt 0:05:41]} 14. Ne5 {[%emt 0:02:17]} Nfd5 {[%emt 0:03:08]} 15. Bxe7 {[%emt 0:05:02]} Rxe7 {[%emt 0:02:59]} 16. Qe4 {[%emt 0:03:07]} Bc6 {[%emt 0:02:33]} 17. Nxc6 {[%emt 0:01:20]} bxc6 {[%emt 0:00:02]} 18. Rfd1 {[%emt 0:02:09]} Rc8 {[%emt 0:02:21]} 19. Bc2 {[%emt 0:06:02]} Nf6 {[%emt 0:00:23]} 20. Qh4 {[%emt 0:00:46]} Rd7 {[%emt 0:03:35]} 21. Ne4 {[%emt 0:01:21]} Nbd5 {[%emt 0:02:56]} 22. Nc5 {[%emt 0:01:57]} Rdc7 {[%emt 0:01:17]} 23. a3 {[%emt 0:10:58]} h6 {[%emt 0:02:40]} 24. b4 {[%emt 0:02:09]} Ne8 {[%emt 0:04:53]} 25. Qe4 {[%emt 0:01:46]} Ndf6 {[%emt 0:01:12]} 26. Qe3 {[%emt 0:00:52]} Nd6 {[%emt 0:02:33]} 27. Bb3 {[%emt 0:04:42]} Nd5 {[%emt 0:01:18]} 28. Qg3 {[%emt 0:03:19]} Nf5 {[%emt 0:01:29]} 29. Qf3 {[%emt 0:01:01]} Qh4 {[%emt 0:02:24]} 30. g3 {[%emt 0:07:27]} Qg5 {[%emt 0:07:55]} 31. Ne4 {[%emt 0:00:43]} Qe7 {[%emt 0:00:06]} 32. Ba4 {[%emt 0:01:17]} Nb6 {[%emt 0:03:53]} 33. Nc5 {[%emt 0:09:27]} Nxa4 {[%emt 0:01:12]} 34. Nxa4 {[%emt 0:00:07]} Rd8 {[%emt 0:04:58]} 35. Qe4 $15 {[%emt 0:02:59]} Qd7 {[%emt 0:04:30]} 36. Nc5 {[%emt 0:24:58]} 1/2-1/2

[Event "Seniors-LEM-65 Sachsen-Anhalt 2024"]
[Site "Magdeburg"]
[Date "2024.07.03"]
[Round "3.5"]
[White "Christen, Pierre"]
[Black "Broemel, Richard"]
[Result "1/2-1/2"]
[ECO "A12"]
[WhiteElo "1946"]
[BlackElo "2123"]
[Annotator "RC"]
[PlyCount "40"]
[EventDate "2024.06.25"]
[EventType "swiss"]
[EventCountry "GER"]
[SourceTitle "playchess.com"]
[Source "ChessBase"]
[SourceQuality "1"]
[TimeControl "40/5400+30:1800+30"]

1. c4 {[%emt 0:00:14]} c6 {[%emt 0:00:05]} 2. g3 {[%emt 0:00:18]} Nf6 {[%emt 0:00:12]} 3. Bg2 {[%emt 0:00:15]} d5 {[%emt 0:00:12]} 4. b3 {[%emt 0:01:26]} Bf5 {[%emt 0:00:57]} 5. Nf3 {[%emt 0:00:48]} e6 {[%emt 0:00:19]} 6. O-O {[%emt 0:00:30]} Nbd7 {[%emt 0:02:13]} 7. d3 {[%emt 0:00:39]} Bc5 {[%emt 0:00:53]} 8. Ba3 {[%emt 0:06:49]} a5 {[%emt 1:29:39]} 9. Bxc5 {[%emt 1:24:01]} Nxc5 {[%emt 0:00:00]} 10. Nh4 {[%emt 0:00:30]} Bg6 {[%emt 0:01:00]} 11. Nd2 {[%emt 0:00:30]} O-O {[%emt 0:00:00]} 12. Rc1 {[%emt 0:00:00]} d4 {[%emt 0:00:00]} 13. Nxg6 {[%emt 0:00:00]} hxg6 {[%emt 0:00:00]} 14. Nf3 {[%emt 0:01:30]} Re8 {[%emt 0:00:00]} 15. a3 {[%emt 0:00:00]} a4 {[%emt 0:02:30]} 16. b4 {[%emt 0:00:00]} Nb3 {[%emt 0:00:00]} 17. Rb1 {[%emt 0:00:00]} Rc8 {[%emt 0:00:00]} 18. Nd2 {[%emt 0:00:00]} Nxd2 {[%emt 0:00:00]} 19. Qxd2 {[%emt 0:00:00]} Qd7 {[%emt 0:00:00]} 20. Rfc1 {[%emt 0:00:00]} e5 {[%emt 0:00:00]} 1/2-1/2

[Event "Seniors-LEM-65 Sachsen-Anhalt 2024"]
[Site "Magdeburg"]
[Date "2024.07.03"]
[Round "3.6"]
[White "Richter, Rainer"]
[Black "Schober, Ralf"]
[Result "1/2-1/2"]
[ECO "D03"]
[WhiteElo "1981"]
[BlackElo "2090"]
[Annotator "NA RC"]
[PlyCount "23"]
[EventDate "2024.06.25"]
[EventType "swiss"]
[EventCountry "GER"]
[SourceTitle "playchess.com"]
[Source "ChessBase"]
[SourceQuality "1"]
[TimeControl "40/5400+30:1800+30"]

1. d4 {[%emt 0:01:51]} Nf6 {[%emt 0:00:44]} 2. Nf3 {[%emt 0:00:06]} g6 {[%emt 0:01:13]} 3. Bg5 {[%emt 0:02:03]} Bg7 {[%emt 0:01:00]} 4. Nbd2 {[%emt 0:00:04]} d5 {[%emt 0:00:50]} 5. c3 {[%emt 0:01:21]} c5 {[%emt 0:07:00]} 6. e3 {[%emt 0:04:18]} cxd4 {[%emt 0:04:39]} 7. exd4 {[%emt 0:01:23]} Nc6 {[%emt 0:01:58]} 8. Be2 {[%emt 0:00:44]} Qc7 {[%emt 0:01:32]} 9. O-O {[%emt 0:01:04]} O-O {[%emt 0:02:01]} 10. Bh4 {[%emt 0:01:39]} Bg4 {[%emt 0:06:07]} 11. Bg3 {[%emt 0:02:58]} Qd7 {[%emt 0:02:04]} 12. Ne5 {[%emt 0:00:36]} 1/2-1/2

[Event "Seniors-LEM-65 Sachsen-Anhalt 2024"]
[Site "Magdeburg"]
[Date "2024.07.03"]
[Round "3.7"]
[White "Kolthoff, Siegmund"]
[Black "Costello, Colin A"]
[Result "1-0"]
[ECO "E14"]
[WhiteElo "2090"]
[BlackElo "1911"]
[Annotator "NA RC"]
[PlyCount "31"]
[EventDate "2024.06.25"]
[EventType "swiss"]
[EventCountry "GER"]
[SourceTitle "playchess.com"]
[Source "ChessBase"]
[SourceQuality "1"]
[TimeControl "40/5400+30:1800+30"]

1. d4 Nf6 2. c4 e6 {[%emt 0:00:34]} 3. Nf3 {[%emt 0:01:03]} Bb4+ {[%emt 0:00:31]} 4. Nbd2 {[%emt 0:01:58]} d5 {[%emt 0:02:35]} 5. e3 {[%emt 0:02:37]} O-O {[%emt 0:03:26]} 6. Bd3 {[%emt 0:00:11]} Nbd7 {[%emt 0:03:15]} 7. O-O {[%emt 1:28:11]} c5 {[%emt 0:05:14]} 8. a3 {[%emt 0:00:00]} Bxd2 {[%emt 1:18:55]} 9. Qxd2 {[%emt 0:01:00]} b6 {[%emt 0:00:30]} 10. b3 {[%emt 0:00:30]} Bb7 {[%emt 0:00:30]} 11. Bb2 {[%emt 0:00:30]} dxc4 {[%emt 0:00:00]} 12. bxc4 {[%emt 0:00:00]} Bxf3 {[%emt 0:00:00]} 13. gxf3 {[%emt 0:00:00]} Nh5 {[%emt 0:00:00]} 14. Rad1 {[%emt 0:00:00]} Qh4 {[%emt 0:00:00]} 15. Kh1 {[%emt 0:00:00]} cxd4 {[%emt 0:00:00]} 16. Bxd4 {[%emt 0:00:00]} 1-0

[Event "Seniors-LEM-65 Sachsen-Anhalt 2024"]
[Site "Magdeburg"]
[Date "2024.07.03"]
[Round "3.8"]
[White "Bregler, Herbert"]
[Black "Matthey, Harald"]
[Result "1-0"]
[ECO "B13"]
[WhiteElo "1952"]
[BlackElo "2064"]
[Annotator "NA RC"]
[PlyCount "69"]
[EventDate "2024.06.25"]
[EventType "swiss"]
[EventCountry "GER"]
[SourceTitle "playchess.com"]
[Source "ChessBase"]
[SourceQuality "1"]
[TimeControl "40/5400+30:1800+30"]

1. d4 {[%emt 0:00:05]} a6 {[%emt 0:00:11]} 2. e4 {[%emt 0:01:36]} c6 {[%emt 0:00:22]} 3. c4 {[%emt 0:03:28]} d5 {[%emt 0:00:34]} 4. exd5 {[%emt 0:00:42]} cxd5 {[%emt 0:00:11]} 5. Nc3 {[%emt 0:00:33]} Nf6 {[%emt 0:02:03]} 6. Nf3 {[%emt 0:01:33]} Nc6 {[%emt 0:01:24]} 7. cxd5 {[%emt 0:11:54]} Nxd5 {[%emt 0:01:13]} 8. Bc4 {[%emt 0:00:08] B13: Caro-Kann: Exchange Variation and Panov-Botvinnik Attack.} e6 {[%emt 0:03:49]} 9. O-O {[%emt 0:02:50]} Be7 {[%emt 0:02:43]} 10. a4 {[%emt 0:02:13]} O-O {[%emt 0:01:31]} 11. Re1 {[%emt 0:05:47]} Ncb4 {[%emt 0:14:28]} 12. Qb3 {[%emt 0:17:39]} Nb6 {[%emt 0:14:14]} 13. Bf1 {[%emt 0:05:59]} Bd7 {[%emt 0:04:32]} (13... a5 $11) 14. a5 {[%emt 0:11:45]} N6d5 {[%emt 0:00:54]} 15. Nxd5 {[%emt 0:01:08]} Nxd5 {[%emt 0:03:05]} 16. Qxb7 {[%emt 0:00:52]} Nb4 {[%emt 0:07:06]} 17. Ne5 {[%emt 0:06:56]} Be8 {[%emt 0:01:18] [#]} 18. Qe4 $1 {[%emt 0:06:04]} f5 {[%emt 0:10:27]} 19. Qb1 {[%emt 0:01:32]} Qxd4 {[%emt 0:00:36]} 20. Nd3 {[%emt 0:02:32]} Nc6 {[%emt 0:09:33]} 21. Rxe6 {[%emt 0:02:00]} Bd7 {[%emt 0:01:50]} 22. Re1 {[%emt 0:00:20]} f4 {[%emt 0:05:13]} 23. Bd2 {[%emt 0:02:28]} f3 {[%emt 0:03:14]} 24. Bc3 {[%emt 0:01:04]} Qg4 {[%emt 0:00:27]} 25. Qa2+ $18 {[%emt 0:06:03]} Kh8 {[%emt 0:00:57]} 26. g3 {[%emt 0:00:25]} Bd6 {[%emt 0:04:43]} 27. Qa4 {[%emt 0:00:22]} Qf5 {[%emt 0:02:04]} 28. Qe4 {[%emt 0:00:44]} Qf7 {[%emt 0:00:26]} 29. Rad1 {[%emt 0:00:52]} Rae8 {[%emt 0:00:33]} 30. Qh4 {[%emt 0:01:35]} Bf5 {[%emt 0:01:14]} 31. Rxe8 {[%emt 0:01:26]} Rxe8 {[%emt 0:00:03]} 32. Qa4 {[%emt 0:02:00]} Nb8 {[%emt 0:02:23]} 33. Qd4 {[%emt 0:00:39]} Bc7 {[%emt 0:01:06]} 34. Nf4 {[%emt 0:01:00]} Rd8 {[%emt 0:00:58]} 35. Qxd8+ {[%emt 0:00:10]} 1-0

[Event "Seniors-LEM-65 Sachsen-Anhalt 2024"]
[Site "Magdeburg"]
[Date "2024.07.03"]
[Round "3.9"]
[White "Koehler, Gerhard"]
[Black "Renner, Bernd"]
[Result "1/2-1/2"]
[ECO "A22"]
[WhiteElo "2204"]
[BlackElo "1997"]
[Annotator "TA"]
[PlyCount "80"]
[EventDate "2024.06.25"]
[EventType "swiss"]
[EventCountry "GER"]
[SourceTitle "playchess.com"]
[Source "ChessBase"]
[SourceQuality "1"]
[TimeControl "40/5400+30:1800+30"]

{[%evp 10,80,-18,-16,-13,-9,17,8,0,-48,-16,-29,0,-24,-27,-40,0,-7,-6,0,0,0,8,0,0,0,0,2,37,0,-6,-13,12,-50,-56,-61,-49,-72,-69,-155,-118,-179,-77,-138,-143,-129,-141,-150,-129,-504,-126,-130,-125,-122,-125,-106,-29,-19,-25,-27,-21,-26,-17,-36,-22,-18,-14,-29,-8,-55,0,-32,0]} 1. c4 {[%emt 0:00:03]} Nf6 {[%emt 0:00:07]} 2. Nc3 {[%emt 0:00:13]} e5 {[%emt 0:00:07]} 3. g3 {[%emt 0:00:13]} Bb4 {[%emt 0:00:34]} 4. Nd5 {[%emt 0:02:19]} Nxd5 {[%emt 0:02:11]} 5. cxd5 {[%emt 0:00:11]} O-O {[%emt 0:00:14]} 6. Bg2 {[%emt 0:00:36]} Re8 {[%emt 0:00:38]} 7. Nf3 {[%emt 0:05:01][%cal Bg1f3,Bf3d2,Bd2c4][%mdl 32]} Bf8 {[%emt 0:02:41]} 8. O-O {[%emt 0:01:25]} c6 {[%emt 0:01:57] The position is equal.} 9. dxc6 {[%emt 0:01:53]} (9. d4 $11 {is more appropriate.}) 9... dxc6 {[%emt 0:00:11]} 10. d3 {[%emt 0:00:13]} Nd7 {[%emt 0:03:22][%cal Bb8d7,Bd7f6,Bf6d5,Bd5b6,Bb6a4,Ba4b2][%mdl 32]} 11. Nd2 {[%emt 0:03:37]} Nf6 {[%emt 0:01:36]} 12. b3 {[%emt 0:00:57]} Bf5 {[%emt 0:05:53]} 13. Bb2 {[%emt 0:02:09]} Qc7 {[%emt 0:02:59]} 14. Rc1 {[%emt 0:10:21]} Rad8 {[%emt 0:01:53]} 15. Qc2 {[%emt 0:00:22]} Bc8 {[%emt 0:06:37]} 16. Nc4 {[%emt 0:08:46]} Nd5 {[%emt 0:01:44]} 17. a3 {[%emt 0:01:07]} f6 {[%emt 0:02:16]} 18. Rfd1 {[%emt 0:08:13]} Kh8 {[%emt 0:02:49]} 19. e4 {[%emt 0:52:21]} Nb6 {[%emt 0:04:39]} 20. Na5 {[%emt 0:00:00]} Na4 {[%emt 0:05:10] Strongly threatening ...Nxb2.} 21. b4 {[%emt 0:00:00]} (21. Nxc6 $11 Qxc6 22. Qxc6 (22. bxa4 Qxc2 23. Rxc2 b6 $11) 22... bxc6 23. bxa4) 21... Nxb2 $15 {[%emt 0:01:30]} 22. Qxb2 {[%emt 0:00:00]} Bg4 {[%emt 0:04:51]} 23. f3 {[%emt 0:00:00]} Be6 {[%emt 0:00:08]} 24. Qf2 {[%emt 0:00:00]} (24. Kh1 $15) 24... Rd4 {[%emt 0:01:13]} 25. Bf1 {[%emt 0:00:00] [#]} (25. Qd2 $17 {was worth a try.}) 25... Red8 {[%emt 0:00:37]} (25... c5 $1 $19 {and Black stays clearly on top. ...b6 would now be deadly.} 26. Qe1 b6) 26. Qc2 {[%emt 0:00:00] [#]} ({White should try} 26. Qe1) 26... Qb6 $1 $17 {[%emt 0:01:18][%csl LRd3,LRe4]} 27. Kg2 {[%emt 0:00:00] [#]} c5 $1 {[%emt 0:01:01][%mdl 512]} 28. Nc4 {[%emt 0:00:00]} Bxc4 {[%emt 0:00:38]} 29. bxc5 {[%emt 0:00:00][%mdl 8192]} (29. dxc4 $17 cxb4 30. c5 Bxc5 31. Rxd4 Bxd4 32. Rb1) 29... Bxc5 $2 {[%emt 0:09:05]} (29... Qa5 $19 30. Qc3 Qxc3 (30... Qxc5 $2 31. Be2 $19) 31. Rxc3 Bb5) 30. dxc4 {[%emt 0:00:00] White is weak on the dark squares} Bxa3 {[%emt 0:02:00]} 31. Rb1 {[%emt 0:00:00]} Rxd1 {[%emt 0:02:29]} 32. Rxd1 {[%emt 0:00:00][%cal Oc4c5]} Rd4 {[%emt 0:00:21]} (32... Bc5 $17 33. Rd5 Rxd5 34. exd5 g6) 33. Qa4 $11 {[%emt 0:07:00] White threatens Qe8+ and mate.} Bf8 {[%emt 0:16:23]} 34. Qe8 $1 {[%emt 0:00:00]} Qc5 {[%emt 0:00:09]} ({And not} 34... Rxd1 35. Qxf8#) 35. Rxd4 {[%emt 0:00:00]} exd4 {[%emt 0:18:39] KQB-KQB} 36. Bd3 {[%emt 0:00:00]} Qe7 37. Qa8 {[%emt 0:00:00]} b6 38. Qd5 {[%emt 0:00:00]} Qc5 {[%emt 0:00:00]} 39. Qf7 {[%emt 0:00:00]} (39. h4 $11) 39... Qe7 {[%emt 0:00:00]} 40. Qd5 {[%emt 0:00:00]} Qc5 {[%emt 0:00:00] Black had all chances to win.   Weighted Error Value: White=0.31/Black=0.36.  Loses game:     	White=1     	---        Missed win:     	---       	Black=1      Mistake:       	White=6     	Black=2      Inaccurate:     	White=1     	Black=6      OK:         	White=10    	Black=10     Best:        	White=1     	Black=1      Strong:       	White=1     	Black=1} 1/2-1/2

[Event "Seniors-LEM-65 Sachsen-Anhalt 2024"]
[Site "Magdeburg"]
[Date "2024.07.03"]
[Round "3.10"]
[White "Erler, Rainer"]
[Black "Gehrmann, Rudolf-Rainer"]
[Result "1-0"]
[ECO "B25"]
[WhiteElo "2121"]
[BlackElo "1980"]
[Annotator "RC"]
[PlyCount "67"]
[EventDate "2024.06.25"]
[EventType "swiss"]
[EventCountry "GER"]
[SourceTitle "playchess.com"]
[Source "ChessBase"]
[SourceQuality "1"]
[TimeControl "40/5400+30:1800+30"]

1. e4 {[%emt 0:00:02]} c5 {[%emt 0:00:06]} 2. Nc3 {[%emt 0:00:07]} g6 {[%emt 0:00:20]} 3. g3 {[%emt 0:00:08]} Bg7 {[%emt 0:00:10]} 4. Bg2 {[%emt 0:00:04]} Nc6 {[%emt 0:00:26]} 5. d3 {[%emt 0:00:10]} d6 {[%emt 0:00:49]} 6. Nh3 {[%emt 0:00:24]} Nf6 {[%emt 0:01:56]} 7. O-O {[%emt 0:00:36]} O-O {[%emt 0:00:16]} 8. f4 {[%emt 0:00:26]} Bg4 {[%emt 0:00:59]} 9. Qd2 {[%emt 0:00:10]} Nd4 {[%emt 0:03:04]} 10. Nf2 {[%emt 0:00:24]} Rb8 {[%emt 0:04:46]} 11. Nxg4 {[%emt 0:01:16]} Nxg4 {[%emt 0:00:42]} 12. h3 {[%emt 0:00:04]} Nf6 {[%emt 0:00:15]} 13. Nd1 {[%emt 0:01:20]} Qd7 {[%emt 0:03:48]} 14. c3 {[%emt 0:02:23]} Nc6 {[%emt 0:00:07]} 15. Ne3 {[%emt 0:02:00]} e6 {[%emt 0:00:54]} 16. g4 {[%emt 0:07:24]} b5 {[%emt 0:08:54]} 17. Qf2 {[%emt 0:03:59]} b4 {[%emt 0:02:01]} 18. Bd2 {[%emt 0:05:17]} Ne8 {[%emt 0:08:24]} 19. Rab1 {[%emt 0:07:15]} Nc7 {[%emt 0:08:34]} 20. f5 {[%emt 0:05:08]} f6 {[%emt 0:03:08]} 21. Nc2 {[%emt 0:05:52]} a5 {[%emt 0:12:41]} 22. d4 {[%emt 0:02:32]} cxd4 {[%emt 0:02:30]} 23. cxd4 {[%emt 0:01:20]} d5 {[%emt 0:02:09]} 24. fxe6 {[%emt 0:04:10]} Qxe6 {[%emt 0:01:15]} 25. Bf4 {[%emt 0:00:19]} Qd7 {[%emt 0:11:47]} 26. exd5 {[%emt 0:01:43]} Na7 {[%emt 0:01:10]} 27. Ne3 {[%emt 0:06:00]} Rb5 {[%emt 0:02:07]} 28. Rbc1 {[%emt 0:00:48]} Rc8 {[%emt 0:00:49]} 29. Qg3 {[%emt 0:07:38]} Ne8 {[%emt 0:01:13]} 30. h4 {[%emt 0:04:39]} Rxc1 {[%emt 0:02:24]} 31. Rxc1 {[%emt 0:00:01]} Nc8 {[%emt 0:00:09]} 32. d6 {[%emt 0:02:39]} Rb6 {[%emt 0:01:42]} 33. Nd5 {[%emt 0:00:55]} Ra6 {[%emt 0:01:02]} 34. Rxc8 {[%emt 0:02:01]} 1-0

[Event "Seniors-LEM-65 Sachsen-Anhalt 2024"]
[Site "Magdeburg"]
[Date "2024.07.03"]
[Round "3.11"]
[White "Leibovitch, Iziaslav"]
[Black "Schwis, Joachim"]
[Result "1-0"]
[ECO "A05"]
[WhiteElo "2105"]
[BlackElo "1950"]
[Annotator "RC"]
[PlyCount "87"]
[EventDate "2024.06.25"]
[EventType "swiss"]
[EventCountry "GER"]
[SourceTitle "playchess.com"]
[Source "ChessBase"]
[SourceQuality "1"]
[TimeControl "40/5400+30:1800+30"]

1. Nf3 {[%emt 0:00:06]} d6 {[%emt 0:00:07]} 2. g3 {[%emt 0:00:43]} g6 {[%emt 0:00:12]} 3. Bg2 {[%emt 0:00:08]} Bg7 {[%emt 0:00:08]} 4. O-O {[%emt 0:00:18]} Nf6 {[%emt 0:00:36]} 5. d3 {[%emt 0:00:22]} O-O {[%emt 0:00:44]} 6. e4 {[%emt 0:00:33]} e5 {[%emt 0:01:50]} 7. Nc3 {[%emt 0:02:39]} Nc6 {[%emt 0:04:17]} 8. h3 {[%emt 0:01:25]} Ne8 {[%emt 0:07:07]} 9. Nd5 {[%emt 0:02:32]} Ne7 {[%emt 0:02:09]} 10. Nxe7+ {[%emt 0:13:01]} Qxe7 {[%emt 0:00:20]} 11. c3 {[%emt 0:03:00]} c6 {[%emt 0:03:48]} 12. d4 {[%emt 0:02:48]} Nc7 {[%emt 0:10:27]} 13. Bg5 {[%emt 0:02:21]} f6 {[%emt 0:00:34]} 14. dxe5 {[%emt 0:04:15]} dxe5 {[%emt 0:00:56]} 15. Be3 {[%emt 0:01:47]} Be6 {[%emt 0:06:08]} 16. Qc2 {[%emt 0:03:30]} Rfd8 {[%emt 0:00:30]} 17. Rfd1 {[%emt 0:01:26]} Bf8 {[%emt 0:03:40]} 18. Rxd8 {[%emt 0:03:53]} Rxd8 {[%emt 0:00:09]} 19. Bxa7 {[%emt 0:01:41]} Ra8 {[%emt 0:02:47]} 20. Bb6 {[%emt 0:06:36]} Nb5 {[%emt 0:02:25]} 21. c4 {[%emt 0:05:34]} Nd6 {[%emt 0:01:53]} 22. b3 {[%emt 0:02:26]} Nc8 {[%emt 0:06:06]} 23. Be3 {[%emt 0:02:00]} c5 {[%emt 0:03:25]} 24. Ne1 {[%emt 0:09:48]} Na7 {[%emt 0:00:12]} 25. Nd3 {[%emt 0:00:19]} b6 {[%emt 0:00:54]} 26. f4 {[%emt 0:00:23]} Nc6 {[%emt 0:00:17]} 27. a4 {[%emt 0:09:49]} Rd8 {[%emt 0:01:18]} 28. Rd1 {[%emt 0:03:29]} Nd4 {[%emt 0:00:28]} 29. Bxd4 {[%emt 0:00:53]} exd4 {[%emt 0:00:59]} 30. Qe2 {[%emt 0:02:43]} Qd7 {[%emt 0:06:02]} 31. Kh2 {[%emt 0:01:19]} Re8 {[%emt 0:01:33]} 32. Qf3 {[%emt 0:00:31]} Qc7 {[%emt 0:02:21]} 33. Re1 {[%emt 0:02:23]} Bg7 {[%emt 0:10:21]} 34. e5 {[%emt 0:05:56]} f5 {[%emt 0:01:27]} 35. Qc6 {[%emt 0:00:26]} Qxc6 {[%emt 0:02:56]} 36. Bxc6 {[%emt 0:00:45]} Rc8 {[%emt 0:01:10]} 37. Bf3 {[%emt 0:01:02]} h5 {[%emt 0:03:41]} 38. Ra1 {[%emt 0:00:18]} Rb8 {[%emt 0:03:39]} 39. a5 {[%emt 0:00:58]} bxa5 {[%emt 0:00:18]} 40. Nxc5 {[%emt 0:00:10]} Bf7 {[%emt 0:01:38]} 41. Rxa5 {[%emt 0:34:23]} Bf8 {[%emt 0:30:41]} 42. e6 {[%emt 0:00:49]} Be8 {[%emt 0:02:26]} 43. Nd7 {[%emt 0:00:00]} Rxb3 {[%emt 0:00:00]} 44. Ra8 {[%emt 0:00:00]} 1-0